[Event "German Masters 2022"]
[Site "Magdeburg"]
[Date "2022.08.20"]
[Round "5.2"]
[White "Kollars, Dmitrij"]
[Black "Engel, Luis"]
[Result "1/2-1/2"]
[ECO "B23"]
[WhiteElo "2648"]
[BlackElo "2558"]
[Annotator "TA"]
[PlyCount "129"]
[EventDate "2022.08.16"]
[EventType "tourn"]
[EventCountry "GER"]
[SourceTitle "playchess.com"]
[Source "ChessBase"]
[SourceQuality "1"]
[TimeControl "40/5400+30:1800+30"]

{[%evp 14,129,25,10,67,61,62,77,82,67,115,116,108,108,92,94,86,102,109,91,102,94,99,94,85,93,94,89,107,94,94,94,85,95,133,131,120,122,116,89,124,109,114,102,104,73,194,246,200,43,53,62,45,46,54,54,54,0,0,0,0,0,8,8,8,8,8,10,10,9,27,8,8,0,0,0,0,0,0,0,0,0,0,0,0,0,0,0,0,0,0,0,0,0,0,0,6,6,28,28,35,0,0,0,0,0,0,0,0,0,0,0,0,0,0,0,0,0]} 1. e4 {[%emt 0:03:14]} c5 {[%emt 0:00:04]} 2. Nc3 {[%emt 0:00:09]} a6 {[%emt 0:00:09]} 3. g3 {[%emt 0:00:25]} b5 {[%emt 0:00:05]} 4. Bg2 {[%emt 0:00:12]} Bb7 {[%emt 0:00:05]} 5. Nge2 {[%emt 0:00:47]} e6 {[%emt 0:01:11]} 6. d4 {[%emt 0:00:11]} cxd4 {[%emt 0:01:24]} 7. Nxd4 {[%emt 0:00:06]} Nf6 {[%emt 0:06:41]} 8. a3 {[%emt 0:03:00]} b4 {[%emt 0:05:57] B43: Sicilian: Kan Variation: 5 Nc3.} (8... d6 $11) 9. axb4 $14 {[%emt 0:02:29]} Bxb4 {[%emt 0:00:07]} 10. O-O {[%emt 0:06:12] Strongly threatening e5.} Qc7 {[%emt 0:14:42] White is better.} 11. Re1 {[%emt 0:12:29]} d6 {[%emt 0:02:52] [#]} (11... O-O $14) 12. Bd2 $1 $16 {[%emt 0:06:45][%cal Oc3d5] [#]} O-O $146 {[%emt 0:16:32] [#]} ({Predecessor:} 12... Bc5 13. Nb3 Nbd7 14. Nxc5 Nxc5 15. Bg5 h6 16. Bxf6 gxf6 17. Qd2 Ke7 18. Nd1 Nd7 {1-0 (59) Girya,O (2240)-Bodnaruk,A (2255) Moscow 2006}) 13. Nd5 $1 {[%emt 0:14:36][%mdl 512]} Nxd5 {[%emt 0:06:53]} 14. exd5 {[%emt 0:00:06]} Bxd2 {[%emt 0:00:05]} 15. Qxd2 {[%emt 0:00:04]} e5 {[%emt 0:03:26]} 16. Nb3 {[%emt 0:00:26] White is much more active.} (16. Nf5 {feels hotter.} Bc8 17. Qa5 Qxa5 18. Ne7+) 16... Nd7 {[%emt 0:03:33][%cal Bb8d7,Bd7f6,Bf6e4][%mdl 32]} 17. Na5 {[%emt 0:02:19]} f5 {[%emt 0:01:21]} 18. Re3 {[%emt 0:02:36]} ({Reject} 18. Nxb7 $6 Qxb7 19. b3 g6 $11) 18... Nf6 {[%emt 0:00:55]} 19. Rb3 {[%emt 0:03:27]} Bc8 {[%emt 0:03:40]} 20. c4 {[%emt 0:00:57][%cal Oc4c5]} Ne4 {[%emt 0:04:25]} 21. Qe1 {[%emt 0:01:37]} Nc5 {[%emt 0:00:36]} 22. Rba3 {[%emt 0:00:46]} e4 {[%emt 0:00:45]} 23. Bf1 {[%emt 0:05:35] Against Nd3} Rf6 {[%emt 0:06:45]} 24. b4 {[%emt 0:02:29]} Nd7 {[%emt 0:00:05]} 25. Nc6 {[%emt 0:04:05]} Bb7 {[%emt 0:00:16]} 26. Qe3 {[%emt 0:07:25]} Raf8 {[%emt 0:02:39]} 27. Qf4 {[%emt 0:05:17][%cal Oc4c5]} h6 {[%emt 0:01:45]} 28. h4 {[%emt 0:00:16]} Kh7 {[%emt 0:01:24]} 29. c5 {[%emt 0:02:32] Hoping for Nd4.} g5 {[%emt 0:01:43]} (29... Re8 $16 {was called for.}) 30. hxg5 $18 {[%emt 0:00:06]} hxg5 {[%emt 0:00:03]} 31. cxd6 $2 {[%emt 0:01:52]} (31. Qxg5 $18 dxc5 32. Bxa6 Bxc6 33. dxc6) 31... Qxd6 $14 {[%emt 0:01:59]} 32. Qxd6 {[%emt 0:01:39]} Rxd6 {[%emt 0:00:05]} 33. b5 {[%emt 0:00:58]} Rxd5 {[%emt 0:03:53]} 34. Na5 $1 {[%emt 0:00:51]} Ba8 {[%emt 0:00:39]} 35. bxa6 {[%emt 0:00:04]} ({Better is} 35. Nc4 $14) 35... Ne5 $11 {[%emt 0:00:32]} 36. Be2 {[%emt 0:02:52] Prevents Nf3+.} f4 {[%emt 0:03:16][%cal Oe4e3]} 37. Nc4 {[%emt 0:02:05] Prevents e3.} e3 {[%emt 0:02:35]} 38. Nxe5 {[%emt 0:02:01]} ({Wrong is} 38. fxe3 $2 f3 39. Nxe5 fxe2 $19) 38... exf2+ {[%emt 0:03:50]} 39. Kxf2 {[%emt 0:00:36]} fxg3+ $1 {[%emt 0:00:53]} 40. Kxg3 {[%emt 0:00:06]} Rxe5 {[%emt 0:00:04]} 41. Bg4 {[%emt 0:33:36]} Kg7 {[%emt 0:32:23]} 42. a7 {[%emt 0:03:29]} Rfe8 $1 {[%emt 0:00:00]} 43. Bh5 {[%emt 0:00:00]} Rh8 {[%emt 0:00:00]} 44. Bf3 {[%emt 0:00:00]} Bxf3 {[%emt 0:00:00]} 45. Rxf3 {[%emt 0:00:00][%mdl 4096] Endgame KRR-KRR} Ra8 $1 {[%emt 0:00:00]} 46. Ra6 {[%emt 0:00:00]} Re7 {[%emt 0:00:00]} 47. Rfa3 {[%emt 0:00:00]} Kf7 {[%emt 0:00:00]} 48. Kg4 {[%emt 0:00:00]} Re5 {[%emt 0:00:00]} 49. Kh5 {[%emt 0:00:00]} Rd5 {[%emt 0:00:00]} 50. Rh6 {[%emt 0:00:00] Black must now prevent Rf3+.} Kg7 {[%emt 0:00:00][%cal Og5g4] aiming for ...g4+!} 51. Rg6+ {[%emt 0:00:00]} Kh7 {[%emt 0:00:00]} 52. Rb6 {[%emt 0:00:00] Rb8 would kill now.} Rd7 {[%emt 0:00:00]} 53. Rba6 {[%emt 0:00:00]} Rg7 {[%emt 0:00:00]} 54. Kg4 {[%emt 0:00:00]} Kg8 {[%emt 0:00:00]} 55. R6a5 {[%emt 0:00:00]} Kh7 {[%emt 0:00:00]} 56. Ra1 {[%emt 0:00:00]} ({But not} 56. Rh3+ $6 Kg8 $18) 56... Kg8 {[%emt 0:00:00]} 57. Rxg5 {[%emt 0:00:54]} Rxg5+ {[%emt 0:00:00] The position is equal.} 58. Kxg5 $14 {[%emt 0:00:03] Threatening mate with Kf6. KR-KR} Kf7 {[%emt 0:00:00]} 59. Kf5 {[%emt 0:00:08]} Ke7 {[%emt 0:00:00]} 60. Ke5 {[%emt 0:00:04]} Kd7 {[%emt 0:00:00]} 61. Kd5 {[%emt 0:00:08]} Kc7 {[%emt 0:00:00]} 62. Ke6 {[%emt 0:00:04]} Kb7 {[%emt 0:00:00]} 63. Kd7 {[%emt 0:00:14]} Rxa7 {[%emt 0:00:00]} 64. Rb1+ {[%emt 0:00:04]} Ka8+ {[%emt 0:00:00]} 65. Kc6 {[%emt 0:00:05] Weighted Error Value: White=0.09 (flawless) /Black=0.08 (flawless)} 1/2-1/2

[Event "German Masters 2022"]
[Site "Magdeburg"]
[Date "2022.08.20"]
[Round "5.3"]
[White "Svane, Frederik"]
[Black "Koelle, Tobias"]
[Result "1/2-1/2"]
[ECO "A21"]
[WhiteElo "2521"]
[BlackElo "2436"]
[Annotator "TA"]
[PlyCount "58"]
[EventDate "2022.08.16"]
[EventType "tourn"]
[EventCountry "GER"]
[SourceTitle "playchess.com"]
[Source "ChessBase"]
[SourceQuality "1"]
[TimeControl "40/5400+30:1800+30"]

{[%evp 15,58,22,6,11,29,0,0,0,0,0,0,0,0,0,0,0,0,0,0,0,0,0,0,-5,-3,-6,-4,-4,-4,-4,-4,-4,-4,-4,-4,-4,0,0,0,-4,0,0,0,-22,0]} 1. c4 {[%emt 0:03:36]} e5 {[%emt 0:00:05]} 2. Nc3 {[%emt 0:00:23]} Bb4 {[%emt 0:00:05]} 3. Nf3 {[%emt 0:00:14]} Bxc3 {[%emt 0:03:44]} 4. bxc3 {[%emt 0:00:05]} d6 {[%emt 0:03:50]} 5. e4 {[%emt 0:05:41]} Nc6 {[%emt 0:04:35]} 6. d4 {[%emt 0:00:12]} Qe7 {[%emt 0:02:35]} 7. Bd3 {[%emt 0:05:15]} Nf6 {[%emt 0:04:02][%cal Bg8f6,Bf6d7,Bd7c5][%mdl 32]} 8. O-O {[%emt 0:04:41]} O-O {[%emt 0:01:01]} 9. Re1 {[%emt 0:01:44] E50: Nimzo-Indian: Rubinstein: 4...0-0 5 Nf3.} Bg4 {[%emt 0:07:26]} 10. d5 {[%emt 0:00:35] [#]} Na5 $146 {[%emt 0:04:36] The position is equal.} ({Predecessor:} 10... Nb8 11. Rb1 b6 12. c5 bxc5 13. h3 Bc8 14. a4 a5 15. Nd2 Nbd7 16. Nc4 h6 {½-½ (73) Poweronoff (2436)-Katzenmaier (2435) Playchess.com INT 2006}) 11. h3 {[%emt 0:01:25]} Bxf3 {[%emt 0:00:50]} 12. Qxf3 {[%emt 0:00:06]} Nd7 {[%emt 0:01:32]} 13. Qe2 {[%emt 0:09:09]} b6 {[%emt 0:06:44]} 14. Rb1 {[%emt 0:04:39]} Rac8 {[%emt 0:04:24]} 15. Bd2 {[%emt 0:12:32]} c6 {[%emt 0:02:30]} 16. Rb4 {[%emt 0:01:07]} Rc7 {[%emt 0:01:44]} 17. g3 {[%emt 0:04:03]} Nc5 {[%emt 0:06:32]} 18. Bc2 {[%emt 0:00:05]} Qd7 {[%emt 0:01:51]} 19. Kh2 {[%emt 0:04:48]} Qc8 {[%emt 0:01:50]} 20. f4 {[%emt 0:07:43]} f6 {[%emt 0:00:13]} 21. f5 $1 {[%emt 0:01:15]} Qa6 {[%emt 0:02:18]} 22. g4 {[%emt 0:17:12]} cxd5 {[%emt 0:03:03]} 23. cxd5 {[%emt 0:01:05]} Qxe2+ {[%emt 0:00:08]} 24. Rxe2 {[%emt 0:00:05]} Na6 {[%emt 0:07:33] Pair of Knights!} 25. Rb1 {[%emt 0:00:37]} Nc4 {[%emt 0:01:00]} 26. Bc1 {[%emt 0:00:11]} Na5 {[%emt 0:00:45]} 27. Bd2 {[%emt 0:01:21]} Nc4 {[%emt 0:01:29]} 28. Bc1 {[%emt 0:00:06]} Na5 {[%emt 0:00:19]} 29. Bb2 {[%emt 0:03:51]} Nc4 {[%emt 0:00:47] An interesting draw.  Weighted Error Value: White=0.03 (flawless) /Black=0.00 (flawless)} 1/2-1/2

[Event "German Masters 2022"]
[Site "Magdeburg"]
[Date "2022.08.20"]
[Round "5.4"]
[White "Braun, Arik"]
[Black "Rosner, Jonas"]
[Result "1-0"]
[ECO "D12"]
[WhiteElo "2594"]
[BlackElo "2478"]
[Annotator "TA"]
[PlyCount "105"]
[EventDate "2022.08.16"]
[EventType "tourn"]
[EventCountry "GER"]
[SourceTitle "playchess.com"]
[Source "ChessBase"]
[SourceQuality "1"]
[TimeControl "40/5400+30:1800+30"]

{[%evp 15,105,29,17,25,39,25,29,12,17,8,21,12,11,25,22,0,16,-5,10,0,34,0,23,23,102,109,86,109,114,98,156,154,253,237,235,241,245,252,243,241,248,239,242,242,285,248,290,247,286,259,341,259,283,283,270,248,248,246,248,241,303,241,303,303,303,303,788,786,762,711,762,664,678,678,685,507,2166,2029,1862,1499,1655,1657,1655,1612,29987,29988,29988,29989,29992,29993,29993,29994]} 1. d4 {[%emt 0:00:04]} d5 {[%emt 0:00:06]} 2. c4 {[%emt 0:00:06]} c6 {[%emt 0:00:06]} 3. Nf3 {[%emt 0:00:08]} Nf6 {[%emt 0:00:09]} 4. e3 {[%emt 0:00:08]} Bf5 {[%emt 0:00:18]} 5. Nc3 {[%emt 0:00:07]} e6 {[%emt 0:00:11]} 6. Nh4 {[%emt 0:00:10]} Be4 {[%emt 0:00:24]} 7. f3 {[%emt 0:00:45]} Bg6 {[%emt 0:00:13]} 8. Qb3 {[%emt 0:00:43]} Qc7 {[%emt 0:00:34]} 9. Bd2 {[%emt 0:00:33] D12: Slav Defence: 3 Nf3 Nf6 4 e3 Bf5.} Be7 {[%emt 0:00:35]} 10. cxd5 {[%emt 0:02:58]} cxd5 {[%emt 0:00:35]} 11. O-O-O {[%emt 0:02:58] White has an edge.} Nc6 {[%emt 0:03:41]} 12. Nxg6 {[%emt 0:01:35]} hxg6 {[%emt 0:00:03]} 13. Kb1 {[%emt 0:00:54]} a6 {[%emt 0:01:29]} 14. Rc1 {[%emt 0:01:13]} Nd7 {[%emt 0:02:42] [#]} 15. Be1 $1 $146 {[%emt 0:25:29][%mdl 8] A relevant novelty.} ({Predecessor:} 15. Bd3 Rc8 16. Ne2 O-O 17. h4 b5 18. h5 g5 19. Ka1 Nb6 20. Bb1 Nc4 21. Be1 {1-0 (41) So,W (2772)-Shankland,S (2709) Saint Louis 2021}) 15... Rc8 {[%emt 0:15:31]} 16. Bg3 {[%emt 0:07:31]} Qb6 {[%emt 0:01:33]} 17. Qd1 {[%emt 0:01:00]} Na5 {[%emt 0:07:28]} 18. Bd3 {[%emt 0:10:28]} Nc4 {[%emt 0:07:19][%csl Gc4][%cal Rb6b2]} (18... Ba3 $2 19. Na4 Rxc1+ 20. Qxc1 Bxb2 21. Qc2 $18 (21. Nxb6 Bxc1 22. Nxd7 Bxe3 $16)) 19. Qe2 {[%emt 0:03:09]} Bd6 {[%emt 0:09:17]} (19... Ba3 $11 20. Na4 Qc6) 20. Bxc4 $16 {[%emt 0:08:51] Black is on the road to losing.} Rxc4 {[%emt 0:06:58] [#]} 21. Bxd6 {[%emt 0:01:17]} Qxd6 {[%emt 0:00:17] [#]} 22. Ne4 $1 {[%emt 0:01:05]} Rxc1+ {[%emt 0:16:06]} ({Black should try} 22... Qc7) 23. Rxc1 {[%emt 0:00:04]} Qb8 {[%emt 0:00:28] [#]} (23... Qxh2 $16 {is a better defense.} 24. Nd6+ Ke7 25. Nxb7 Ra8) 24. Rc8+ $3 $18 {[%emt 0:00:54][%mdl 512]} Qxc8 {[%emt 0:00:02]} 25. Nd6+ {[%emt 0:00:04]} Ke7 {[%emt 0:00:08]} 26. Nxc8+ {[%emt 0:00:06]} Rxc8 {[%emt 0:00:03][%mdl 4096] Endgame KQ-KRN} 27. Qe1 {[%emt 0:01:07] Black must now prevent Qb4+.} Rc7 {[%emt 0:03:16]} 28. Qh4+ {[%emt 0:03:41]} Nf6 {[%emt 0:00:25]} 29. e4 {[%emt 0:00:26]} Kd7 {[%emt 0:02:53]} 30. b3 {[%emt 0:06:45]} Rc8 {[%emt 0:01:48]} 31. Kb2 {[%emt 0:00:19]} Rc7 {[%emt 0:02:03]} 32. Qf4 {[%emt 0:03:49] Hoping for e5.} Kd8 {[%emt 0:03:39]} 33. a4 {[%emt 0:01:40]} Kc8 {[%emt 0:02:29]} 34. Qd6 {[%emt 0:03:07] Qf8+ is the strong threat.} Ne8 {[%emt 0:00:48]} 35. Qe5 {[%emt 0:00:16]} Rd7 {[%emt 0:04:06]} 36. Kc3 {[%emt 0:01:20]} Nf6 {[%emt 0:00:26]} 37. Kd3 {[%emt 0:00:58]} Kd8 {[%emt 0:01:22]} 38. Qb8+ {[%emt 0:03:22]} Ke7 {[%emt 0:00:02]} 39. e5 {[%emt 0:00:58]} Ne8 {[%emt 0:00:39]} 40. f4 {[%emt 0:01:13]} f5 $2 {[%emt 0:08:09]} (40... Kf8 41. b4 Rc7) 41. b4 {[%emt 0:33:36]} Rc7 {[%emt 0:03:28]} 42. b5 {[%emt 0:00:00]} axb5 {[%emt 0:00:30]} 43. axb5 {[%emt 0:00:00] aiming for b6.} Kf7 {[%emt 0:01:59]} 44. b6 {[%emt 0:00:00]} Re7 {[%emt 0:01:58]} 45. Qd8 {[%emt 0:00:00]} g5 {[%emt 0:02:58]} (45... Kf8 $142 46. Ke3 Kf7) 46. fxg5 {[%emt 0:00:00]} g6 {[%emt 0:00:12]} 47. h4 {[%emt 0:00:00][%cal Bh2h4,Bh4h5,Bh5h6,Bh6h7][%mdl 32]} Kf8 {[%emt 0:04:50]} 48. Ke3 {[%emt 0:00:00]} Kf7 {[%emt 0:01:27]} 49. h5 {[%emt 0:00:00]} Kf8 {[%emt 0:01:18]} 50. h6 {[%emt 0:00:00] White mates.} Rf7 {[%emt 0:00:10]} 51. Qc8 {[%emt 0:00:00]} Re7 {[%emt 0:00:06]} 52. Qc5 {[%emt 0:00:00]} Kf7 {[%emt 0:00:15]} 53. h7 {[%emt 0:00:00] Weighted Error Value: White=0.08 (flawless) /Black=0.36} 1-0

[Event "German Masters 2022"]
[Site "Magdeburg"]
[Date "2022.08.20"]
[Round "5.5"]
[White "Huschenbeth, Niclas"]
[Black "Svane, Rasmus"]
[Result "0-1"]
[ECO "C84"]
[WhiteElo "2610"]
[BlackElo "2649"]
[Annotator "TA"]
[PlyCount "116"]
[EventDate "2022.08.16"]
[EventType "tourn"]
[EventCountry "GER"]
[SourceTitle "playchess.com"]
[Source "ChessBase"]
[SourceQuality "1"]
[TimeControl "40/5400+30:1800+30"]

{[%evp 18,116,35,31,39,15,13,18,18,17,12,12,8,2,12,20,29,9,7,13,11,0,24,0,0,-3,15,-6,-10,-20,-5,-24,-8,-12,-9,-9,-8,0,-4,-25,-3,-9,0,-8,-10,-8,0,0,0,0,0,-17,-12,-12,-18,-21,-23,-51,-51,-46,-46,-40,-44,-56,-50,-58,-57,-66,-62,-60,-52,-52,-55,-67,-64,-53,-70,-148,-179,-455,-433,-433,-433,-289,-513,-407,-287,-573,-545,-534,-534,-29972,-29973,-29970,-29974,-29980,-29981,-29981,-29982,-29982,40]} 1. e4 {[%emt 0:00:49]} e5 {[%emt 0:00:31]} 2. Nf3 {[%emt 0:00:07]} Nc6 {[%emt 0:00:06]} 3. Bb5 {[%emt 0:00:08][%cal Bf1b5,Bb5a4,Ba4b3][%mdl 32]} a6 {[%emt 0:00:05]} 4. Ba4 {[%emt 0:00:03]} Nf6 {[%emt 0:00:07]} 5. O-O {[%emt 0:00:06]} Be7 {[%emt 0:00:04]} 6. d3 {[%emt 0:00:21]} b5 {[%emt 0:00:09]} 7. Bb3 {[%emt 0:00:04]} d6 {[%emt 0:00:06]} 8. c3 {[%emt 0:00:15]} O-O {[%emt 0:00:36]} 9. h3 {[%emt 0:00:07] is more profitable than 9.Re1 at the moment.} h6 {[%emt 0:07:31]} 10. Re1 {[%emt 0:02:14]} Re8 {[%emt 0:01:37] C93: Closed Ruy Lopez: Smyslov Variation.} 11. a4 {[%emt 0:09:08]} Rb8 {[%emt 0:19:09]} 12. axb5 {[%emt 0:03:09]} axb5 {[%emt 0:00:19] The position is equal.} 13. Nbd2 {[%emt 0:00:48][%cal Bb1d2,Bd2f1,Bf1e3,Be3f5][%mdl 32]} Bf8 {[%emt 0:05:43]} 14. Nf1 {[%emt 0:02:00]} Be6 {[%emt 0:13:39]} 15. Ne3 {[%emt 0:20:18] [#]} Bxb3 $146 {[%emt 0:08:41]} ({Predecessor:} 15... d5 16. exd5 Nxd5 17. Ra6 Nxe3 18. Bxe3 Bxb3 19. Qxb3 Qd7 20. Rd1 Nd8 21. d4 exd4 22. Rxd4 {½-½ (27) Skapikova,L (1899)-Zemlickova,O (2096) Tatranske Zruby 2018}) 16. Qxb3 {[%emt 0:00:17]} Qd7 {[%emt 0:00:05]} 17. Bd2 {[%emt 0:06:59]} Nd8 {[%emt 0:08:32][%cal Bc6d8,Bd8e6,Be6c5][%mdl 32]} 18. Ra7 {[%emt 0:14:48]} Ne6 {[%emt 0:07:56]} 19. Qc2 {[%emt 0:08:10]} Qc6 {[%emt 0:06:49]} 20. Nf5 {[%emt 0:05:33]} Ra8 {[%emt 0:02:51]} 21. Rxa8 {[%emt 0:00:05]} Rxa8 {[%emt 0:04:20]} 22. Qb1 {[%emt 0:00:29]} Nc5 {[%emt 0:01:03]} 23. b4 {[%emt 0:01:08]} Ncd7 {[%emt 0:01:03]} 24. d4 {[%emt 0:09:24]} Re8 {[%emt 0:00:06]} 25. d5 {[%emt 0:05:58]} Qb7 {[%emt 0:01:32]} 26. Qd3 {[%emt 0:04:37]} c6 {[%emt 0:00:04]} 27. dxc6 {[%emt 0:00:20]} Qxc6 {[%emt 0:00:02]} 28. Nh2 {[%emt 0:01:04]} d5 {[%emt 0:05:13]} 29. exd5 {[%emt 0:00:02]} Qxd5 {[%emt 0:00:25]} 30. Qxd5 {[%emt 0:00:10]} Nxd5 {[%emt 0:00:05]} 31. Ng4 {[%emt 0:00:14]} N5b6 {[%emt 0:03:33]} 32. Ra1 {[%emt 0:02:43]} Ra8 {[%emt 0:01:00]} 33. Rxa8 {[%emt 0:01:18]} Nxa8 {[%emt 0:00:02]} 34. Nge3 {[%emt 0:00:52]} g6 {[%emt 0:00:38]} 35. Nh4 {[%emt 0:01:46]} Nab6 {[%emt 0:00:21]} 36. g4 {[%emt 0:00:27]} Kg7 {[%emt 0:01:45]} 37. Nf3 {[%emt 0:00:27]} Kf6 $1 {[%emt 0:00:27]} 38. Kf1 {[%emt 0:00:40]} Ke6 {[%emt 0:00:16]} 39. Ke2 {[%emt 0:00:36]} Nf6 {[%emt 0:00:48]} 40. Nc2 {[%emt 0:02:00]} Ne4 {[%emt 0:02:37] Hoping for ...Nd5.} 41. Na3 {[%emt 0:06:16]} Nd6 {[%emt 0:00:20]} 42. Ne1 {[%emt 0:10:03]} f5 {[%emt 0:02:37]} 43. gxf5+ {[%emt 0:01:45]} gxf5 {[%emt 0:00:03]} 44. Nec2 {[%emt 0:03:00]} Bg7 {[%emt 0:04:14]} 45. f3 {[%emt 0:00:34]} h5 {[%emt 0:06:17]} 46. Ne3 {[%emt 0:07:51]} Bh6 {[%emt 0:09:03]} 47. Nf1 {[%emt 0:02:19] [#]} ({White should try} 47. Kd3 $15) 47... Bxd2 $1 $17 {[%emt 0:01:33]} 48. Kxd2 {[%emt 0:00:27]} (48. Nxd2 {is the only way for White.} Nd5 49. c4 bxc4 50. Ndxc4) 48... Nbc4+ {[%emt 0:01:44]} 49. Nxc4 {[%emt 0:00:02]} Nxc4+ $19 {[%emt 0:00:06][%mdl 4096] Endgame KN-KN} 50. Kd3 {[%emt 0:00:43]} f4 {[%emt 0:01:57] Against Ng3} 51. Ke4 {[%emt 0:01:21]} Kf6 {[%emt 0:00:34] [#] And now ...Kg5 would win.} 52. h4 {[%emt 0:00:55]} (52. Kd3) 52... Ke6 {[%emt 0:00:05]} 53. Kd3 {[%emt 0:00:43]} Kd5 {[%emt 0:02:32]} 54. Nd2 {[%emt 0:00:58]} Nxd2 {[%emt 0:01:23] Black mates.} 55. Kxd2 {[%emt 0:00:01]} e4 {[%emt 0:00:53]} 56. fxe4+ {[%emt 0:00:30]} Kxe4 {[%emt 0:00:06]} 57. Ke2 {[%emt 0:00:51]} f3+ {[%emt 0:02:28]} 58. Kf2 {[%emt 0:00:02]} Ke5 $2 {[%mdl 32768] Weighted Error Value: White=0.27 (precise) /Black=0.05 (flawless) . Sensor Board Error (Ke4/e5)?} ({Not} 58... Kf4 59. c4 bxc4 60. b5 $11) (58... Kd3 {mates} 59. Kxf3 Kxc3 60. Kf4 Kxb4 61. Kg5 Kc5 62. Kxh5 b4 63. Kg6 b3 64. h5 b2 65. h6 b1=Q+ 66. Kg7 Qb7+ 67. Kg6 Qe4+ 68. Kg7 Qe5+ 69. Kg6 Kd5 70. h7 Ke6 71. h8=Q Qxh8 72. Kg5 Qd4 73. Kh6 Qg1 74. Kh5 Kf5 75. Kh6 Qg6#) 0-1

[Event "German Masters 2022"]
[Site "Magdeburg"]
[Date "2022.08.21"]
[Round "6.1"]
[White "Keymer, Vincent"]
[Black "Svane, Rasmus"]
[Result "1-0"]
[ECO "A15"]
[WhiteElo "2686"]
[BlackElo "2649"]
[Annotator "TA"]
[PlyCount "99"]
[EventDate "2022.08.16"]
[EventType "tourn"]
[EventCountry "GER"]
[SourceTitle "playchess.com"]
[Source "ChessBase"]
[SourceQuality "1"]
[TimeControl "40/5400+30:1800+30"]

{[%evp 9,99,16,19,12,5,8,10,10,13,0,9,6,15,13,19,18,12,22,13,11,6,7,9,0,12,4,13,13,94,75,103,83,92,76,101,93,95,97,111,106,114,112,139,100,104,73,73,74,83,58,72,38,329,237,218,197,555,189,191,188,188,192,186,172,178,187,217,209,253,242,283,268,280,228,283,205,319,262,532,532,545,339,657,339,642,546,939,932,29987,29988,29988,29989]} 1. c4 {[%emt 0:00:08]} Nf6 {[%emt 0:00:56]} 2. Nf3 {[%emt 0:00:04]} e6 {[%emt 0:00:34]} 3. b3 {[%emt 0:00:04]} d5 {[%emt 0:00:16]} 4. Bb2 {[%emt 0:00:03]} c5 {[%emt 0:00:46]} 5. cxd5 {[%emt 0:00:05]} exd5 {[%emt 0:00:07]} 6. g3 {[%emt 0:00:04] A13: English Opening: 1...e6.} Nc6 {[%emt 0:00:49]} 7. Bg2 {[%emt 0:00:04]} d4 {[%emt 0:00:39]} 8. O-O {[%emt 0:00:16] The position is equal.} Be7 {[%emt 0:01:22]} 9. Na3 {[%emt 0:00:06]} O-O {[%emt 0:00:13]} 10. Nc4 {[%emt 0:00:32]} Be6 {[%emt 0:01:57]} 11. e3 {[%emt 0:00:11]} Rc8 {[%emt 0:02:13]} 12. Nce5 {[%emt 0:01:22]} Nxe5 {[%emt 0:01:32]} 13. Nxe5 {[%emt 0:00:10]} Qb6 {[%emt 0:00:31] [#]} 14. Rc1 $146 {[%emt 0:00:34]} ({Predecessor:} 14. Qe2 Rfe8 15. Nc4 Qb5 16. exd4 cxd4 17. Bxd4 b6 18. Rfe1 Bxc4 19. bxc4 Qxc4 20. Qxc4 Rxc4 {½-½ (26) Gardner,A (2260)-Sherwood,A (2339) ICCF email 2019}) 14... dxe3 {[%emt 0:02:47]} 15. dxe3 {[%emt 0:00:21]} Qa6 {[%emt 0:00:05]} 16. a4 {[%emt 0:02:17]} Rfd8 {[%emt 0:03:02]} 17. Qc2 {[%emt 0:00:22]} Nd5 {[%emt 0:15:06]} 18. Be4 {[%emt 0:00:50]} Nf6 {[%emt 0:05:23]} (18... g6 $11) 19. Bd3 $1 $16 {[%emt 0:10:13]} Qb6 {[%emt 0:09:18]} 20. Nc4 {[%emt 0:00:54]} Bxc4 {[%emt 0:00:14]} 21. Bxc4 {[%emt 0:09:58]} Ne8 {[%emt 0:12:07]} 22. e4 {[%emt 0:03:12]} (22. Qf5 Bf6 $14) 22... Nc7 {[%emt 0:10:51]} 23. f4 {[%emt 0:11:18]} Ne6 {[%emt 0:03:26]} 24. e5 {[%emt 0:05:19]} Qc6 {[%emt 0:01:05]} 25. Rce1 {[%emt 0:17:23]} a6 {[%emt 0:10:22]} 26. a5 {[%emt 0:04:18]} Nd4 {[%emt 0:07:47]} 27. Bxd4 {[%emt 0:02:13]} cxd4 {[%emt 0:03:43]} 28. Qd3 $1 {[%emt 0:02:44]} (28. Qf5 Qg6 29. Qxg6 hxg6 $11) 28... Qc5 {[%emt 0:02:13]} 29. f5 {[%emt 0:04:05] f6 is the strong threat. White is much more active.} Bg5 {[%emt 0:00:45]} 30. e6 {[%emt 0:05:40][%cal Be5e6,Be6f7][%mdl 32]} Qxa5 $2 {[%emt 0:02:08][%mdl 8192] This costs Black the game.} ({Better is} 30... Kh8 $1 $14) 31. exf7+ {[%emt 0:00:34]} Kh8 {[%emt 0:00:58]} 32. Qxd4 {[%emt 0:02:52][%cal Of5f6]} b5 $2 {[%emt 0:01:37] [#]} (32... Bf6 33. Qe4 Qc5+ 34. Kg2 b5) 33. Qe4 $2 {[%emt 0:01:36]} Rf8 $18 {[%emt 0:00:39]} 34. Be6 {[%emt 0:00:36]} Rcd8 {[%emt 0:00:47]} 35. Re2 {[%emt 0:01:12]} Qb6+ {[%emt 0:00:14]} 36. Kg2 {[%emt 0:00:05]} a5 {[%emt 0:00:55]} 37. Bd5 {[%emt 0:01:56]} Qc5 {[%emt 0:00:40]} 38. Rd1 {[%emt 0:00:21][%cal Bf1d1,Bd1d3,Bd3e3,Be3e6][%mdl 32]} a4 {[%emt 0:00:48]} 39. b4 {[%emt 0:02:48]} ({Don't take} 39. bxa4 $6 bxa4 40. Rd3 Rd7 $18) 39... Qa7 {[%emt 0:00:29]} 40. Rd3 {[%emt 0:02:05]} Bf6 {[%emt 0:00:32]} 41. Qf3 {[%emt 0:37:17]} h6 {[%emt 0:06:53]} 42. Rde3 {[%emt 0:00:00] Black must now prevent Re8.} Qd7 {[%emt 0:03:47] Against Re8} (42... Rxf7 $142 43. Bxf7 Qxf7) 43. Ba2 {[%emt 0:00:00]} Qd6 $2 {[%emt 0:03:07]} (43... Qc8 {keeps fighting.} 44. Rd3 Kh7) 44. Re6 {[%emt 0:00:00]} Qd4 {[%emt 0:00:50]} 45. Qc6 {[%emt 0:00:00]} Kh7 $2 {[%emt 0:05:50]} (45... Rxf7 46. R6e4 (46. Qxb5 Rff8 $16) 46... Qd7 47. Re8+ Kh7 48. Qxd7 Rdxd7 49. Bxf7 Rxf7) 46. R6e4 {[%emt 0:00:00]} ({Not} 46. Qxb5 Rxf7 47. Qxa4 Rb8 $18) 46... Qd3 {[%emt 0:05:56]} (46... Qd7 47. Qxd7 Rxd7) 47. Re8 {[%emt 0:00:00]} a3 {[%emt 0:02:13]} 48. Qc5 {[%emt 0:00:00]} g6 {[%emt 0:03:11]} 49. fxg6+ {[%emt 0:00:00]} Kxg6 {[%emt 0:00:27]} 50. Bb1 {[%emt 0:00:00] Weighted Error Value: White=0.26 (precise) /Black=0.63} 1-0